[Event "Titled Tuesday Blitz August 02 Early 2022"]
[White "Alexiadis, Hristos"]
[Black "Rasulov, Vugar"]
[WhiteFideId "4249623"]
[BlackFideId "13402390"]
[WhiteElo "2416"]
[BlackElo "2523"]
[Result "1-0"]
[Round "04"]
[TimeControl "180+1"]
[Date "2022.08.02"]
[WhiteClock "0:00:17"]
[BlackClock "0:00:19"]

1. d4 {[%clk 0:03:00]}  d5 {[%clk 0:03:00]} 2. c4 {[%clk 0:03:01]}  c6 {[%clk 0:03:00]} 3. Nf3 {[%clk 0:03:00]}  Nf6 {[%clk 0:03:00]} 4. e3 {[%clk 0:03:00]}  e6 {[%clk 0:02:58]} 5. Nc3 {[%clk 0:03:00]}  Nbd7 {[%clk 0:02:58]} 6. Be2 {[%clk 0:03:00]}  Bd6 {[%clk 0:02:58]} 7. O-O {[%clk 0:03:00]}  O-O {[%clk 0:02:58]} 8. Qc2 {[%clk 0:02:59]}  Re8 {[%clk 0:02:58]} 9. b3 {[%clk 0:02:57]}  Qe7 {[%clk 0:02:58]} 10. Bb2 {[%clk 0:02:57]}  b6 {[%clk 0:02:58]} 11. Rfe1 {[%clk 0:02:55]}  Bb7 {[%clk 0:02:58]} 12. Rad1 {[%clk 0:02:55]}  Rad8 {[%clk 0:02:58]} 13. e4 {[%clk 0:02:55]}  Nxe4 {[%clk 0:02:57]} 14. Nxe4 {[%clk 0:02:56]}  dxe4 {[%clk 0:02:57]} 15. Qxe4 {[%clk 0:02:57]}  Nf6 {[%clk 0:02:58]} 16. Qh4 {[%clk 0:02:54]}  Ba3 {[%clk 0:02:53]} 17. Ba1 {[%clk 0:02:51]}  Bb4 {[%clk 0:02:54]} 18. Rf1 {[%clk 0:02:45]}  c5 {[%clk 0:02:50]} 19. dxc5 {[%clk 0:02:35]}  Bxc5 {[%clk 0:02:49]} 20. Ne5 {[%clk 0:02:26]}  h6 {[%clk 0:02:33]} 21. Bf3 {[%clk 0:02:22]}  Rxd1 {[%clk 0:02:24]} 22. Rxd1 {[%clk 0:02:07]}  Rd8 {[%clk 0:02:23]} 23. Nd3 {[%clk 0:01:10]}  Bxf3 {[%clk 0:01:54]} 24. Bxf6 {[%clk 0:01:10]}  Qxf6 {[%clk 0:01:47]} 25. Qxf6 {[%clk 0:01:09]}  gxf6 {[%clk 0:01:48]} 26. gxf3 {[%clk 0:01:10]}  f5 {[%clk 0:01:44]} 27. Kf1 {[%clk 0:01:08]}  Kg7 {[%clk 0:01:43]} 28. Ke2 {[%clk 0:01:07]}  Bd6 {[%clk 0:01:43]} 29. Ne5 {[%clk 0:01:02]}  Bc7 {[%clk 0:01:25]} 30. Rxd8 {[%clk 0:00:57]}  Bxd8 {[%clk 0:01:26]} 31. Nc6 {[%clk 0:00:58]}  Bc7 {[%clk 0:01:26]} 32. Nxa7 {[%clk 0:00:34]}  Bxh2 {[%clk 0:01:25]} 33. Nb5 {[%clk 0:00:35]}  Kf6 {[%clk 0:01:22]} 34. b4 {[%clk 0:00:33]}  Ke7 {[%clk 0:01:19]} 35. a4 {[%clk 0:00:33]}  Kd7 {[%clk 0:01:10]} 36. a5 {[%clk 0:00:32]}  bxa5 {[%clk 0:01:07]} 37. bxa5 {[%clk 0:00:33]}  Kc6 {[%clk 0:01:04]} 38. a6 {[%clk 0:00:32]}  h5 {[%clk 0:00:29]} 39. a7 {[%clk 0:00:26]}  Kb7 {[%clk 0:00:30]} 40. c5 {[%clk 0:00:26]}  h4 {[%clk 0:00:24]} 41. c6+ {[%clk 0:00:25]}  Ka8 {[%clk 0:00:24]} 42. Kf1 {[%clk 0:00:20]}  h3 {[%clk 0:00:24]} 43. c7 {[%clk 0:00:20]}  Bxc7 {[%clk 0:00:24]} 44. Nxc7+ {[%clk 0:00:21]}  Kxa7 {[%clk 0:00:25]} 45. Ne8 {[%clk 0:00:21]}  Kb6 {[%clk 0:00:22]} 46. Nd6 {[%clk 0:00:21]}  f6 {[%clk 0:00:19]} 47. Ne8 {[%clk 0:00:21]}  Kc5 {[%clk 0:00:19]} 48. Nxf6 {[%clk 0:00:21]}  Kd4 {[%clk 0:00:20]} 49. Nh5 {[%clk 0:00:19]}  Kd5 {[%clk 0:00:11]} 50. Nf4+ {[%clk 0:00:18]}  Ke5 {[%clk 0:00:12]} 51. Nxh3 {[%clk 0:00:19]}  Kd4 {[%clk 0:00:12]} 52. Nf4 {[%clk 0:00:18]}  e5 {[%clk 0:00:12]} 53. Ne2+ {[%clk 0:00:18]}  Kd5 {[%clk 0:00:13]} 54. Ng3 {[%clk 0:00:19]}  Ke6 {[%clk 0:00:12]} 55. Ke2 {[%clk 0:00:19]}  Kf6 {[%clk 0:00:13]} 56. Nf1 {[%clk 0:00:18]}  Kg5 {[%clk 0:00:13]} 57. Nd2 {[%clk 0:00:17]}  Kf4 {[%clk 0:00:13]} 58. Nc4 {[%clk 0:00:16]}  e4 {[%clk 0:00:13]} 59. fxe4 {[%clk 0:00:16]}  Kxe4 {[%clk 0:00:14]} 60. Ne3 {[%clk 0:00:13]}  Kf4 {[%clk 0:00:14]} 61. Ng2+ {[%clk 0:00:13]}  Ke4 {[%clk 0:00:14]} 62. f3+ {[%clk 0:00:14]}  Kd4 {[%clk 0:00:14]} 63. Kf2 {[%clk 0:00:14]}  Ke5 {[%clk 0:00:14]} 64. Kg3 {[%clk 0:00:14]}  Kf6 {[%clk 0:00:12]} 65. Kf4 {[%clk 0:00:14]}  Kg6 {[%clk 0:00:13]} 66. Ne3 {[%clk 0:00:15]}  Kh5 {[%clk 0:00:14]} 67. Nxf5 {[%clk 0:00:16]}  Kg6 {[%clk 0:00:14]} 68. Ne3 {[%clk 0:00:17]}  Kh5 {[%clk 0:00:15]} 69. Ke4 {[%clk 0:00:17]}  Kg6 {[%clk 0:00:16]} 70. f4 {[%clk 0:00:18]}  Kf6 {[%clk 0:00:16]} 71. f5 {[%clk 0:00:19]}  Kf7 {[%clk 0:00:17]} 72. Kf4 {[%clk 0:00:20]}  Ke7 {[%clk 0:00:18]} 73. Ke5 {[%clk 0:00:20]}  Kf7 {[%clk 0:00:19]} 74. f6 {[%clk 0:00:20]}  Kf8 {[%clk 0:00:19]} 75. Ke6 {[%clk 0:00:20]}  Ke8 {[%clk 0:00:20]} 76. f7+ {[%clk 0:00:21]}  Kf8 {[%clk 0:00:21]} 77. Nd1 {[%clk 0:00:21]}  Kg7 {[%clk 0:00:22]} 78. Ke7 {[%clk 0:00:22]}  Kg6 {[%clk 0:00:23]} 79. f8=Q {[%clk 0:00:23]}  Kh5 {[%clk 0:00:24]} 80. Qg8 {[%clk 0:00:23]}  Kh4 {[%clk 0:00:24]} 81. Kf6 {[%clk 0:00:18]}  Kh3 {[%clk 0:00:24]} 82. Kf5 {[%clk 0:00:19]}  Kh2 {[%clk 0:00:21]} 83. Kf4 {[%clk 0:00:18]}  Kh1 {[%clk 0:00:19]} 84. Kf3 {[%clk 0:00:18]}  Kh2 {[%clk 0:00:19]} 85. Qg2# {[%clk 0:00:17]} 1-0


[Site "https://www.chess.com"]

[Event "Titled Tuesday Blitz August 02 Early 2022"]
[White "Andreikin, Dmitry"]
[Black "Vasquez Schroeder, Rodrigo"]
[WhiteFideId "4158814"]
[BlackFideId "3400042"]
[WhiteElo "2736"]
[BlackElo "2567"]
[Result "1-0"]
[Round "04"]
[TimeControl "180+1"]
[Date "2022.08.02"]
[WhiteClock "0:02:30"]
[BlackClock "0:02:09"]

1. d4 {[%clk 0:03:00]}  d5 {[%clk 0:03:00]} 2. c4 {[%clk 0:03:01]}  c6 {[%clk 0:03:00]} 3. Nf3 {[%clk 0:03:01]}  Nf6 {[%clk 0:03:00]} 4. Qc2 {[%clk 0:03:02]}  dxc4 {[%clk 0:03:00]} 5. e4 {[%clk 0:03:02]}  b5 {[%clk 0:02:58]} 6. b3 {[%clk 0:03:02]}  cxb3 {[%clk 0:02:57]} 7. axb3 {[%clk 0:03:03]}  e6 {[%clk 0:02:58]} 8. Bd3 {[%clk 0:03:04]}  Bb7 {[%clk 0:02:57]} 9. O-O {[%clk 0:03:03]}  Nbd7 {[%clk 0:02:57]} 10. Bd2 {[%clk 0:03:00]}  a5 {[%clk 0:02:56]} 11. Rc1 {[%clk 0:03:00]}  Be7 {[%clk 0:02:53]} 12. Nc3 {[%clk 0:02:59]}  h6 {[%clk 0:02:52]} 13. e5 {[%clk 0:02:59]}  Nd5 {[%clk 0:02:40]} 14. Nxd5 {[%clk 0:02:58]}  exd5 {[%clk 0:02:40]} 15. e6 {[%clk 0:02:52]}  fxe6 {[%clk 0:02:39]} 16. Bg6+ {[%clk 0:02:52]}  Kf8 {[%clk 0:02:40]} 17. Re1 {[%clk 0:02:52]}  Kg8 {[%clk 0:02:37]} 18. Rxe6 {[%clk 0:02:44]}  Nf8 {[%clk 0:02:37]} 19. Ne5 {[%clk 0:02:38]}  Nxe6 {[%clk 0:02:34]} 20. Bf7+ {[%clk 0:02:37]}  Kf8 {[%clk 0:02:34]} 21. Bxe6 {[%clk 0:02:35]}  g5 {[%clk 0:02:09]} 22. Qg6 {[%clk 0:02:30]} 1-0


[Site "https://www.chess.com"]

[Event "Titled Tuesday Blitz August 02 Early 2022"]
[White "Bayo Milagro, Alvaro"]
[Black "Mardov, Dimitar"]
[WhiteFideId "22275240"]
[BlackFideId "30919495"]
[WhiteElo "2270"]
[BlackElo "2185"]
[Result "0-1"]
[Round "04"]
[TimeControl "180+1"]
[Date "2022.08.02"]
[WhiteClock "0:00:21"]
[BlackClock "0:00:36"]

1. d4 {[%clk 0:02:58]}  Nf6 {[%clk 0:03:00]} 2. Nf3 {[%clk 0:02:57]}  e6 {[%clk 0:03:00]} 3. c4 {[%clk 0:02:57]}  Bb4+ {[%clk 0:02:59]} 4. Bd2 {[%clk 0:02:56]}  c5 {[%clk 0:03:00]} 5. Bxb4 {[%clk 0:02:55]}  cxb4 {[%clk 0:03:01]} 6. g3 {[%clk 0:02:52]}  O-O {[%clk 0:03:00]} 7. Bg2 {[%clk 0:02:53]}  a5 {[%clk 0:03:01]} 8. O-O {[%clk 0:02:26]}  Na6 {[%clk 0:03:00]} 9. a3 {[%clk 0:02:22]}  d6 {[%clk 0:03:00]} 10. Qd3 {[%clk 0:02:22]}  Qe7 {[%clk 0:02:58]} 11. e4 {[%clk 0:02:21]}  e5 {[%clk 0:02:58]} 12. Nbd2 {[%clk 0:02:18]}  b6 {[%clk 0:02:47]} 13. Rfe1 {[%clk 0:02:12]}  Bb7 {[%clk 0:02:47]} 14. Rad1 {[%clk 0:02:11]}  Rfd8 {[%clk 0:02:45]} 15. Nh4 {[%clk 0:02:09]}  g6 {[%clk 0:02:45]} 16. f4 {[%clk 0:02:06]}  exf4 {[%clk 0:02:12]} 17. Nhf3 {[%clk 0:01:38]}  fxg3 {[%clk 0:02:04]} 18. hxg3 {[%clk 0:01:39]}  Ng4 {[%clk 0:01:51]} 19. Nf1 {[%clk 0:01:21]}  Nc7 {[%clk 0:01:40]} 20. Bh3 {[%clk 0:01:11]}  h5 {[%clk 0:01:36]} 21. d5 {[%clk 0:01:05]}  Ne8 {[%clk 0:01:20]} 22. Bxg4 {[%clk 0:01:00]}  hxg4 {[%clk 0:01:19]} 23. Nd4 {[%clk 0:01:01]}  Nf6 {[%clk 0:01:16]} 24. Rd2 {[%clk 0:00:55]}  Rac8 {[%clk 0:01:05]} 25. Rf2 {[%clk 0:00:50]}  Nd7 {[%clk 0:00:54]} 26. Ne3 {[%clk 0:00:47]}  Ne5 {[%clk 0:00:54]} 27. Qe2 {[%clk 0:00:45]}  Qg5 {[%clk 0:00:51]} 28. Rf4 {[%clk 0:00:42]}  bxa3 {[%clk 0:00:47]} 29. bxa3 {[%clk 0:00:42]}  Ba6 {[%clk 0:00:46]} 30. Nc6 {[%clk 0:00:35]}  Nxc6 {[%clk 0:00:43]} 31. dxc6 {[%clk 0:00:35]}  Rxc6 {[%clk 0:00:41]} 32. Nxg4 {[%clk 0:00:33]}  Bxc4 {[%clk 0:00:39]} 33. Qf2 {[%clk 0:00:24]}  Be6 {[%clk 0:00:37]} 34. Nf6+ {[%clk 0:00:21]}  Kg7 {[%clk 0:00:36]} 0-1


[Site "https://www.chess.com"]

[Event "Titled Tuesday Blitz August 02 Early 2022"]
[White "Hakobyan, Aram"]
[Black "Gurel, Ediz"]
[WhiteFideId "13306677"]
[BlackFideId "44507356"]
[WhiteElo "2557"]
[BlackElo "1894"]
[Result "0-1"]
[Round "04"]
[TimeControl "180+1"]
[Date "2022.08.02"]
[WhiteClock "0:00:48"]
[BlackClock "0:00:22"]

1. e4 {[%clk 0:03:00]}  c5 {[%clk 0:02:59]} 2. Nf3 {[%clk 0:03:01]}  e6 {[%clk 0:03:00]} 3. d4 {[%clk 0:03:01]}  cxd4 {[%clk 0:03:01]} 4. Nxd4 {[%clk 0:03:01]}  Nc6 {[%clk 0:03:02]} 5. Nc3 {[%clk 0:03:01]}  Qc7 {[%clk 0:03:02]} 6. Be2 {[%clk 0:03:00]}  a6 {[%clk 0:03:01]} 7. O-O {[%clk 0:03:00]}  Nf6 {[%clk 0:02:58]} 8. Be3 {[%clk 0:03:01]}  Be7 {[%clk 0:02:57]} 9. f4 {[%clk 0:03:01]}  d6 {[%clk 0:02:57]} 10. Qe1 {[%clk 0:03:02]}  O-O {[%clk 0:02:57]} 11. Kh1 {[%clk 0:03:01]}  Bd7 {[%clk 0:02:57]} 12. Qg3 {[%clk 0:03:02]}  Rac8 {[%clk 0:02:51]} 13. Rae1 {[%clk 0:03:02]}  b5 {[%clk 0:02:49]} 14. a3 {[%clk 0:03:02]}  Kh8 {[%clk 0:02:43]} 15. Bd3 {[%clk 0:03:00]}  g6 {[%clk 0:02:08]} 16. Nxc6 {[%clk 0:03:00]}  Bxc6 {[%clk 0:02:08]} 17. Bd4 {[%clk 0:03:00]}  Kg8 {[%clk 0:02:07]} 18. Re3 {[%clk 0:02:50]}  Nh5 {[%clk 0:01:59]} 19. Qe1 {[%clk 0:02:29]}  Nxf4 {[%clk 0:01:36]} 20. Rxf4 {[%clk 0:02:25]}  e5 {[%clk 0:01:36]} 21. Nd5 {[%clk 0:02:26]}  Bxd5 {[%clk 0:01:27]} 22. exd5 {[%clk 0:02:27]}  Bg5 {[%clk 0:01:15]} 23. Rff3 {[%clk 0:01:58]}  exd4 {[%clk 0:01:13]} 24. Re4 {[%clk 0:01:59]}  Be3 {[%clk 0:00:56]} 25. Qh4 {[%clk 0:01:57]}  Rce8 {[%clk 0:00:54]} 26. Rh3 {[%clk 0:01:54]}  h6 {[%clk 0:00:41]} 27. Rf3 {[%clk 0:01:23]}  Rxe4 {[%clk 0:00:41]} 28. Qxe4 {[%clk 0:01:23]}  Qd8 {[%clk 0:00:34]} 29. Qg4 {[%clk 0:01:15]}  Kg7 {[%clk 0:00:32]} 30. Rf1 {[%clk 0:01:12]}  Qe7 {[%clk 0:00:31]} 31. h3 {[%clk 0:01:12]}  h5 {[%clk 0:00:30]} 32. Qf3 {[%clk 0:01:08]}  f5 {[%clk 0:00:30]} 33. c3 {[%clk 0:01:03]}  dxc3 {[%clk 0:00:29]} 34. bxc3 {[%clk 0:01:03]}  f4 {[%clk 0:00:29]} 35. c4 {[%clk 0:01:03]}  bxc4 {[%clk 0:00:29]} 36. Bxc4 {[%clk 0:01:04]}  a5 {[%clk 0:00:29]} 37. Bd3 {[%clk 0:01:02]}  Qh4 {[%clk 0:00:27]} 38. Qe4 {[%clk 0:00:58]}  Qg5 {[%clk 0:00:27]} 39. Qe6 {[%clk 0:00:52]}  Qf6 {[%clk 0:00:25]} 40. Qe4 {[%clk 0:00:51]}  Bc5 {[%clk 0:00:17]} 41. Rxf4 {[%clk 0:00:44]}  Qa1+ {[%clk 0:00:14]} 42. Kh2 {[%clk 0:00:37]}  Rxf4 {[%clk 0:00:09]} 43. Qxg6+ {[%clk 0:00:37]}  Kf8 {[%clk 0:00:09]} 44. Qh6+ {[%clk 0:00:38]}  Ke7 {[%clk 0:00:09]} 45. Qxf4 {[%clk 0:00:39]}  Qg1+ {[%clk 0:00:08]} 46. Kg3 {[%clk 0:00:39]}  Qe1+ {[%clk 0:00:09]} 47. Kf3 {[%clk 0:00:36]}  Qf2+ {[%clk 0:00:09]} 48. Ke4 {[%clk 0:00:37]}  Qd4+ {[%clk 0:00:09]} 49. Kf5 {[%clk 0:00:37]}  Qxd3+ {[%clk 0:00:10]} 50. Qe4+ {[%clk 0:00:37]}  Qxe4+ {[%clk 0:00:10]} 51. Kxe4 {[%clk 0:00:38]}  Kf6 {[%clk 0:00:11]} 52. Kf4 {[%clk 0:00:38]}  Bxa3 {[%clk 0:00:11]} 53. g4 {[%clk 0:00:36]}  hxg4 {[%clk 0:00:12]} 54. hxg4 {[%clk 0:00:36]}  Bc1+ {[%clk 0:00:12]} 55. Ke4 {[%clk 0:00:36]}  Kg5 {[%clk 0:00:13]} 56. Kd3 {[%clk 0:00:37]}  Kxg4 {[%clk 0:00:13]} 57. Kc2 {[%clk 0:00:38]}  Ba3 {[%clk 0:00:13]} 58. Kb3 {[%clk 0:00:38]}  Bc5 {[%clk 0:00:14]} 59. Ka4 {[%clk 0:00:39]}  Kf5 {[%clk 0:00:15]} 60. Kxa5 {[%clk 0:00:40]}  Ke5 {[%clk 0:00:15]} 61. Kb5 {[%clk 0:00:41]}  Kxd5 {[%clk 0:00:16]} 62. Ka4 {[%clk 0:00:41]}  Kc4 {[%clk 0:00:17]} 63. Ka5 {[%clk 0:00:42]}  d5 {[%clk 0:00:18]} 64. Ka6 {[%clk 0:00:43]}  d4 {[%clk 0:00:19]} 65. Kb7 {[%clk 0:00:44]}  d3 {[%clk 0:00:19]} 66. Kc6 {[%clk 0:00:44]}  d2 {[%clk 0:00:20]} 67. Kd7 {[%clk 0:00:45]}  d1=Q+ {[%clk 0:00:21]} 68. Kc6 {[%clk 0:00:46]}  Qd6+ {[%clk 0:00:21]} 69. Kb7 {[%clk 0:00:47]}  Qd7+ {[%clk 0:00:21]} 70. Ka6 {[%clk 0:00:48]}  Qa7# {[%clk 0:00:22]} 0-1


[Site "https://www.chess.com"]

[Event "Titled Tuesday Blitz August 02 Early 2022"]
[White "Harsha Bharathakoti"]
[Black "Ezat, Mohamed"]
[WhiteFideId "5078776"]
[BlackFideId "10600906"]
[WhiteElo "2575"]
[BlackElo "2386"]
[Result "1-0"]
[Round "04"]
[TimeControl "180+1"]
[Date "2022.08.02"]
[WhiteClock "0:01:28"]
[BlackClock "0:00:24"]

1. c4 {[%clk 0:03:00]}  Nf6 {[%clk 0:02:52]} 2. Nc3 {[%clk 0:03:00]}  g6 {[%clk 0:02:52]} 3. e4 {[%clk 0:03:00]}  d6 {[%clk 0:02:53]} 4. d4 {[%clk 0:03:00]}  Bg7 {[%clk 0:02:53]} 5. f3 {[%clk 0:03:00]}  O-O {[%clk 0:02:54]} 6. Nge2 {[%clk 0:02:59]}  Nc6 {[%clk 0:02:53]} 7. Be3 {[%clk 0:02:59]}  a6 {[%clk 0:02:53]} 8. Rc1 {[%clk 0:02:59]}  Bd7 {[%clk 0:02:51]} 9. Qd2 {[%clk 0:02:58]}  Rb8 {[%clk 0:02:48]} 10. Ng3 {[%clk 0:02:53]}  e5 {[%clk 0:02:44]} 11. d5 {[%clk 0:02:51]}  Nd4 {[%clk 0:02:45]} 12. Nge2 {[%clk 0:02:48]}  c5 {[%clk 0:02:39]} 13. dxc6 {[%clk 0:02:49]}  bxc6 {[%clk 0:02:38]} 14. Nxd4 {[%clk 0:02:49]}  exd4 {[%clk 0:02:39]} 15. Bxd4 {[%clk 0:02:50]}  Re8 {[%clk 0:02:40]} 16. Be2 {[%clk 0:02:48]}  d5 {[%clk 0:02:40]} 17. cxd5 {[%clk 0:02:48]}  Rb4 {[%clk 0:02:39]} 18. Bc5 {[%clk 0:02:34]}  Nxe4 {[%clk 0:02:36]} 19. fxe4 {[%clk 0:02:34]}  Bxc3 {[%clk 0:02:35]} 20. Rxc3 {[%clk 0:02:28]}  Rbxe4 {[%clk 0:02:35]} 21. Re3 {[%clk 0:02:26]}  Rxe3 {[%clk 0:02:25]} 22. Bxe3 {[%clk 0:02:27]}  Qh4+ {[%clk 0:02:21]} 23. Bf2 {[%clk 0:02:25]}  Qe4 {[%clk 0:02:03]} 24. Kf1 {[%clk 0:02:25]}  cxd5 {[%clk 0:02:00]} 25. Bd3 {[%clk 0:02:05]}  Bb5 {[%clk 0:01:08]} 26. Bxb5 {[%clk 0:02:05]}  axb5 {[%clk 0:01:09]} 27. h4 {[%clk 0:02:03]}  Qb1+ {[%clk 0:01:03]} 28. Be1 {[%clk 0:02:02]}  Qf5+ {[%clk 0:00:52]} 29. Kg1 {[%clk 0:01:59]}  Qg4 {[%clk 0:00:45]} 30. Bf2 {[%clk 0:01:49]}  d4 {[%clk 0:00:40]} 31. Rh3 {[%clk 0:01:36]}  Re4 {[%clk 0:00:25]} 32. Rg3 {[%clk 0:01:28]}  Qxh4 {[%clk 0:00:24]} 33. Rxg6+ {[%clk 0:01:28]} 1-0


[Site "https://www.chess.com"]

[Event "Titled Tuesday Blitz August 02 Early 2022"]
[White "Hosseinzadeh, Nima"]
[Black "Le, Tuan Minh"]
[WhiteFideId "12505323"]
[BlackFideId "12401153"]
[WhiteElo "2066"]
[BlackElo "2530"]
[Result "0-1"]
[Round "04"]
[TimeControl "180+1"]
[Date "2022.08.02"]
[WhiteClock "0:00:04"]
[BlackClock "0:00:21"]

1. e4 {[%clk 0:03:00]}  c5 {[%clk 0:02:59]} 2. Nf3 {[%clk 0:03:00]}  Nf6 {[%clk 0:02:59]} 3. e5 {[%clk 0:03:00]}  Nd5 {[%clk 0:02:59]} 4. Nc3 {[%clk 0:03:01]}  e6 {[%clk 0:02:59]} 5. Ne4 {[%clk 0:03:01]}  f5 {[%clk 0:03:00]} 6. Nc3 {[%clk 0:03:01]}  Ne7 {[%clk 0:03:00]} 7. g3 {[%clk 0:02:53]}  Nbc6 {[%clk 0:02:58]} 8. Bg2 {[%clk 0:02:54]}  a6 {[%clk 0:02:59]} 9. O-O {[%clk 0:02:53]}  Ng6 {[%clk 0:02:59]} 10. Re1 {[%clk 0:02:53]}  Be7 {[%clk 0:03:00]} 11. h4 {[%clk 0:02:50]}  Qc7 {[%clk 0:02:59]} 12. d4 {[%clk 0:02:46]}  cxd4 {[%clk 0:02:59]} 13. Nxd4 {[%clk 0:02:47]}  O-O {[%clk 0:02:29]} 14. Nxc6 {[%clk 0:02:42]}  bxc6 {[%clk 0:02:28]} 15. Qe2 {[%clk 0:02:40]}  Nh8 {[%clk 0:02:19]} 16. Bg5 {[%clk 0:02:24]}  Bxg5 {[%clk 0:01:56]} 17. hxg5 {[%clk 0:02:25]}  f4 {[%clk 0:01:57]} 18. gxf4 {[%clk 0:02:11]}  Ng6 {[%clk 0:01:52]} 19. Qe3 {[%clk 0:02:12]}  Nxf4 {[%clk 0:01:49]} 20. Rad1 {[%clk 0:01:45]}  Rb8 {[%clk 0:01:40]} 21. Be4 {[%clk 0:01:27]}  Rxb2 {[%clk 0:01:23]} 22. Rd4 {[%clk 0:01:27]}  Qd8 {[%clk 0:01:15]} 23. Qg3 {[%clk 0:01:17]}  Qxg5 {[%clk 0:01:13]} 24. Qxg5 {[%clk 0:00:09]}  Nh3+ {[%clk 0:01:13]} 25. Kg2 {[%clk 0:00:09]}  Nxg5 {[%clk 0:01:14]} 26. f4 {[%clk 0:00:09]}  c5 {[%clk 0:00:41]} 27. Ra4 {[%clk 0:00:08]}  Nxe4 {[%clk 0:00:38]} 28. Nxe4 {[%clk 0:00:09]}  Rxc2+ {[%clk 0:00:34]} 29. Kg3 {[%clk 0:00:09]}  Bb7 {[%clk 0:00:35]} 30. Nd6 {[%clk 0:00:09]}  Bc6 {[%clk 0:00:34]} 31. Rxa6 {[%clk 0:00:08]}  Rg2+ {[%clk 0:00:34]} 32. Kh3 {[%clk 0:00:08]}  Rf2 {[%clk 0:00:31]} 33. Rxc6 {[%clk 0:00:07]}  dxc6 {[%clk 0:00:31]} 34. Rc1 {[%clk 0:00:07]}  R8xf4 {[%clk 0:00:19]} 35. Rxc5 {[%clk 0:00:07]}  h5 {[%clk 0:00:20]} 36. Rxc6 {[%clk 0:00:06]}  g5 {[%clk 0:00:20]} 37. Rc8+ {[%clk 0:00:06]}  Kg7 {[%clk 0:00:20]} 38. Re8 {[%clk 0:00:04]}  R4f3# {[%clk 0:00:21]} 0-1


[Site "https://www.chess.com"]

[Event "Titled Tuesday Blitz August 02 Early 2022"]
[White "Janaszak, Dawid"]
[Black "Fernandez Guillen, Ernesto J."]
[WhiteFideId "1119206"]
[BlackFideId "3512428"]
[WhiteElo "2199"]
[BlackElo "2440"]
[Result "1-0"]
[Round "04"]
[TimeControl "180+1"]
[Date "2022.08.02"]
[WhiteClock "0:00:18"]
[BlackClock "0:00:15"]

1. e4 {[%clk 0:03:00]}  e5 {[%clk 0:02:57]} 2. Nf3 {[%clk 0:02:58]}  Nc6 {[%clk 0:02:57]} 3. d4 {[%clk 0:02:57]}  exd4 {[%clk 0:02:57]} 4. Nxd4 {[%clk 0:02:57]}  g6 {[%clk 0:02:58]} 5. Nc3 {[%clk 0:02:51]}  Bg7 {[%clk 0:02:57]} 6. Be3 {[%clk 0:02:49]}  Nge7 {[%clk 0:02:57]} 7. h4 {[%clk 0:02:44]}  h5 {[%clk 0:02:48]} 8. Qd2 {[%clk 0:02:29]}  O-O {[%clk 0:02:43]} 9. O-O-O {[%clk 0:02:26]}  d5 {[%clk 0:02:43]} 10. Nxc6 {[%clk 0:02:20]}  bxc6 {[%clk 0:02:43]} 11. Bh6 {[%clk 0:02:14]}  Be6 {[%clk 0:02:24]} 12. Bxg7 {[%clk 0:02:12]}  Kxg7 {[%clk 0:02:24]} 13. Be2 {[%clk 0:01:53]}  dxe4 {[%clk 0:02:23]} 14. Qxd8 {[%clk 0:01:29]}  Raxd8 {[%clk 0:02:24]} 15. Nxe4 {[%clk 0:01:29]}  Nd5 {[%clk 0:02:24]} 16. g3 {[%clk 0:01:24]}  Bf5 {[%clk 0:02:21]} 17. Bf3 {[%clk 0:01:17]}  Rfe8 {[%clk 0:02:21]} 18. Rhe1 {[%clk 0:01:07]}  Rd7 {[%clk 0:01:59]} 19. c4 {[%clk 0:00:48]}  Nb4 {[%clk 0:01:56]} 20. Rxd7 {[%clk 0:00:36]}  Bxd7 {[%clk 0:01:57]} 21. Kd2 {[%clk 0:00:29]}  f5 {[%clk 0:01:00]} 22. Nc5 {[%clk 0:00:23]}  Rxe1 {[%clk 0:00:54]} 23. Kxe1 {[%clk 0:00:23]}  Be8 {[%clk 0:00:48]} 24. a3 {[%clk 0:00:22]}  Nc2+ {[%clk 0:00:48]} 25. Kd2 {[%clk 0:00:21]}  Nd4 {[%clk 0:00:49]} 26. Ke3 {[%clk 0:00:20]}  Nxf3 {[%clk 0:00:40]} 27. Kxf3 {[%clk 0:00:21]}  Kf6 {[%clk 0:00:40]} 28. Kf4 {[%clk 0:00:22]}  Bf7 {[%clk 0:00:41]} 29. b3 {[%clk 0:00:22]}  Be8 {[%clk 0:00:37]} 30. Na6 {[%clk 0:00:20]}  Bd7 {[%clk 0:00:36]} 31. Nxc7 {[%clk 0:00:20]}  Bc8 {[%clk 0:00:36]} 32. b4 {[%clk 0:00:17]}  Bb7 {[%clk 0:00:28]} 33. b5 {[%clk 0:00:16]}  cxb5 {[%clk 0:00:26]} 34. Nxb5 {[%clk 0:00:17]}  a6 {[%clk 0:00:25]} 35. Nd4 {[%clk 0:00:17]}  Bc8 {[%clk 0:00:21]} 36. c5 {[%clk 0:00:17]}  a5 {[%clk 0:00:21]} 37. c6 {[%clk 0:00:17]}  Ba6 {[%clk 0:00:18]} 38. Nb3 {[%clk 0:00:16]}  Ke7 {[%clk 0:00:08]} 39. Ke5 {[%clk 0:00:14]}  a4 {[%clk 0:00:06]} 40. Nc5 {[%clk 0:00:13]}  Bb5 {[%clk 0:00:06]} 41. c7 {[%clk 0:00:14]}  Bd7 {[%clk 0:00:07]} 42. Nxd7 {[%clk 0:00:13]}  Kxd7 {[%clk 0:00:08]} 43. Kf6 {[%clk 0:00:13]}  Kxc7 {[%clk 0:00:08]} 44. Kxg6 {[%clk 0:00:14]}  Kc6 {[%clk 0:00:09]} 45. Kxh5 {[%clk 0:00:14]}  Kc5 {[%clk 0:00:10]} 46. Kg5 {[%clk 0:00:14]}  Kc4 {[%clk 0:00:11]} 47. h5 {[%clk 0:00:15]}  Kb3 {[%clk 0:00:12]} 48. h6 {[%clk 0:00:15]}  Kxa3 {[%clk 0:00:13]} 49. h7 {[%clk 0:00:16]}  Kb2 {[%clk 0:00:14]} 50. h8=Q+ {[%clk 0:00:16]}  Kb3 {[%clk 0:00:13]} 51. Kxf5 {[%clk 0:00:17]}  a3 {[%clk 0:00:14]} 52. g4 {[%clk 0:00:18]}  a2 {[%clk 0:00:15]} 53. g5 {[%clk 0:00:18]}  Kc2 {[%clk 0:00:15]} 54. Qa1 {[%clk 0:00:18]}  Kb3 {[%clk 0:00:15]} 55. g6 {[%clk 0:00:18]} 1-0


[Site "https://www.chess.com"]